{"text_format":"3","workbook":"xlsx","n_sheets":1,"sheets":["Asinsspiediens un glikoze"],"not_rendered":{"defined_names":9},"read":"whole","date_system":"1900"}

{"sheet":"Asinsspiediens un glikoze","index":0,"n_rows":13,"n_cols":11,"rows_kept":13,"merged":[[0,1,4,3],[0,4,0,9],[1,4,1,6],[1,7,1,9],[3,7,4,7],[3,8,4,8],[3,9,4,9]]}
[null,"Asinsspiediena\nun glikozes līmeņa žurnāls",null,null,"Pielāgojiet mēroga vērtības šūnās E2–J5 zemāk."]
[{"$nulls":4},"ASINSSPIEDIENS",null,null,"GLIKOZES LĪMEŅA SKALA"]
[{"$nulls":4},120,"SISTOLISKAIS",140,70,100,150]
[{"$nulls":4},80,"DIASTOLISKAIS",90,"ZEMS","NORMĀLS","AUGSTS"]
[{"$nulls":4},"VĒLAMAIS ASINSSPIEDIENS",null,"JĀZVANA ĀRSTAM"]
[null,"Datums","Laiks","Notikums","Sistoliskais","Diastoliskais","Pulss","Glikoze","Līmenis","Statuss","Piezīmes"]
[null,{"$f":"TODAY()","v":"2018-06-28"},"06:00:00","Pamošanās",129,79,72,55,{"$f":"BloodPressureAndGlucose[[#This Row],[Glikoze]]","v":55},{"$f":"IFERROR(IF(BloodPressureAndGlucose[[#This Row],[Līmenis]]=0,\"\",IF(BloodPressureAndGlucose[[#This Row],[Līmenis]]<=GLow,\"ZEMS\",IF(AND(BloodPressureAndGlucose[[#This Row],[Līmenis]]>GLow,BloodPressureAndGlucose[[#This Row],[Līmenis]]<GHigh),\"NORMĀLS\",\"AUGSTS\"))), \"\")","v":"ZEMS"}]
[null,{"$f":"TODAY()","v":"2018-06-28"},"07:00:00","Pirms ēšanas",120,80,74,70,{"$f":"BloodPressureAndGlucose[[#This Row],[Glikoze]]","v":70},{"$f":"IFERROR(IF(BloodPressureAndGlucose[[#This Row],[Līmenis]]=0,\"\",IF(BloodPressureAndGlucose[[#This Row],[Līmenis]]<=GLow,\"ZEMS\",IF(AND(BloodPressureAndGlucose[[#This Row],[Līmenis]]>GLow,BloodPressureAndGlucose[[#This Row],[Līmenis]]<GHigh),\"NORMĀLS\",\"AUGSTS\"))), \"\")","v":"ZEMS"}]
[null,"2018-06-28","09:00:00","Pēc ēšanas",133,80,75,75,{"$f":"BloodPressureAndGlucose[[#This Row],[Glikoze]]","v":75},{"$f":"IFERROR(IF(BloodPressureAndGlucose[[#This Row],[Līmenis]]=0,\"\",IF(BloodPressureAndGlucose[[#This Row],[Līmenis]]<=GLow,\"ZEMS\",IF(AND(BloodPressureAndGlucose[[#This Row],[Līmenis]]>GLow,BloodPressureAndGlucose[[#This Row],[Līmenis]]<GHigh),\"NORMĀLS\",\"AUGSTS\"))), \"\")","v":"NORMĀLS"}]
[null,"2018-06-28","10:00:00","Tikai asinsspied.",143,91,75,190,{"$f":"BloodPressureAndGlucose[[#This Row],[Glikoze]]","v":190},{"$f":"IFERROR(IF(BloodPressureAndGlucose[[#This Row],[Līmenis]]=0,\"\",IF(BloodPressureAndGlucose[[#This Row],[Līmenis]]<=GLow,\"ZEMS\",IF(AND(BloodPressureAndGlucose[[#This Row],[Līmenis]]>GLow,BloodPressureAndGlucose[[#This Row],[Līmenis]]<GHigh),\"NORMĀLS\",\"AUGSTS\"))), \"\")","v":"AUGSTS"}]
[null,"2018-06-28","12:00:00","Pirms ēšanas",141,84,70,140,{"$f":"BloodPressureAndGlucose[[#This Row],[Glikoze]]","v":140},{"$f":"IFERROR(IF(BloodPressureAndGlucose[[#This Row],[Līmenis]]=0,\"\",IF(BloodPressureAndGlucose[[#This Row],[Līmenis]]<=GLow,\"ZEMS\",IF(AND(BloodPressureAndGlucose[[#This Row],[Līmenis]]>GLow,BloodPressureAndGlucose[[#This Row],[Līmenis]]<GHigh),\"NORMĀLS\",\"AUGSTS\"))), \"\")","v":"NORMĀLS"}]
[null,{"$f":"TODAY()","v":"2018-06-28"},"15:00:00","Pēc ēšanas",132,80,68,90,{"$f":"BloodPressureAndGlucose[[#This Row],[Glikoze]]","v":90},{"$f":"IFERROR(IF(BloodPressureAndGlucose[[#This Row],[Līmenis]]=0,\"\",IF(BloodPressureAndGlucose[[#This Row],[Līmenis]]<=GLow,\"ZEMS\",IF(AND(BloodPressureAndGlucose[[#This Row],[Līmenis]]>GLow,BloodPressureAndGlucose[[#This Row],[Līmenis]]<GHigh),\"NORMĀLS\",\"AUGSTS\"))), \"\")","v":"NORMĀLS"},"Kopā ar ēdienu ieņēmu asinsspiediena medikamentus"]
[null,"Vidējie rādītāji",null,null,{"$f":"SUBTOTAL(101,BloodPressureAndGlucose[Sistoliskais])","v":133},{"$f":"SUBTOTAL(101,BloodPressureAndGlucose[Diastoliskais])","v":{"v":82.33333333333333,"d":"82"}},{"$f":"SUBTOTAL(101,BloodPressureAndGlucose[Pulss])","v":{"v":72.33333333333333,"d":"72"}},{"$f":"SUBTOTAL(101,BloodPressureAndGlucose[Glikoze])","v":{"v":103.33333333333333,"d":"103"}}]